Cogmind - Beta 16 @@@ ROGUE MODE // 2026.01.11 @ 01:01:14 Player: Legato Result: Destroyed by XH-SUZ(M) with Heavy Riot Gun Performance ------------- Evolutions (6) 3000 Regions Visited (15) 3000 Robots Destroyed (62) 310 Value Destroyed (1347) 1347 Prototype IDs (22) 440 Alien Tech Used (0) 0 Bonus (764) 764 TOTAL SCORE: 8861 Bonus ------- High Alert Combat Kills 35 Registered with UFD 300 Met Optimus in HQ 500 Friendly Fire -71 Cogmind --------- Core Integrity 0/1150 Matter 299/300 Energy 99/100 System Corruption 0% Temperature Cool (0) Movement Core (50) Location -4/Warlord Parts ------- > --- POWER (2) -------- (None) > --- PROPULSION (7) --- (None) > --- UTILITY (8) ------ (None) > --- WEAPON (2) ------- (None) > --- INVENTORY (5) ---- Makeshift Terrain Scan Processor Advanced ECM Suite Improved Proton Missile Launcher Improved Plasma Cutter Mining Claw Peak State ------------ > --- POWER ------------ Neutrino Core Micro Fission Core > --- PROPULSION ------- VTOL Module VTOL Module Improved VTOL Module Improved VTOL Module Xenon Bombardment Thruster Xenon Bombardment Thruster Xenon Bombardment Thruster > --- UTILITY ---------- Structural Scanner Advanced Sensor Array Improved Melee Analysis Suite Advanced ECM Suite Improved Propulsion Shielding Improved Hacking Suite System Shield System Guard > --- WEAPON ----------- Mining Claw Axe > --- INVENTORY -------- Antimatter Reactor Xenon Bombardment Thruster Improved Transmission Jammer Improved Proton Missile Launcher Improved Plasma Cutter [Rating: 72] Favorites ----------- Power Deuterium Engine Engine Deuterium Engine Power Core Light Nuclear Core Reactor Antimatter Reactor Propulsion Improved VTOL Module Treads Light Treads Leg Aluminum Leg Hover Unit Improved Hover Unit Flight Unit Improved VTOL Module Utility Utility Shielding Device Advanced Sensor Array Storage Small Storage Unit Processor Improved Melee Analysis Suite Hackware Improved Hacking Suite Protection Utility Shielding Weapon Mining Claw Energy Gun Small Laser Ballistic Gun Assault Rifle Launcher Mini Grenade Launcher Slashing Weapon Mining Claw Special Melee Weapon Improved Datajack Build | -11 -10 -9 -9 -8 -8 -8 -8 -6 -6 -6 -5 -4 -4 -4 -4 ------- Run | Yrd Mat Mat Min Mat Sto Rec Scr Fac Low Low Fac Fac Upp Upp War Slots Evolved 12 | . . 2 . 2 . . . 4 . . 2 2 . . . Power 1 | . . . . . . . . . . . 1 . . . . Propulsion 5 | . . 1 . 1 . . . 2 . . . 1 . . . Utility 6 | . . 1 . 1 . . . 2 . . 1 1 . . . Weapon . | . . . . . . . . . . . . . . . . Parts Attached 71 | 7 11 22 . . 1 . 8 8 . . 5 4 1 4 . Power 12 | 1 2 3 . . . . 1 . . . 2 1 1 1 . Engine 7 | 1 1 3 . . . . 1 . . . 1 . . . . Core 4 | . 1 . . . . . . . . . 1 1 1 . . Reactor 1 | . . . . . . . . . . . . . . 1 . Propulsion 24 | 2 3 11 . . 1 . 3 2 . . . 1 . 1 . Treads 7 | 2 1 4 . . . . . . . . . . . . . Leg 3 | . 2 1 . . . . . . . . . . . . . Wheel . | . . . . . . . . . . . . . . . . Hover 1 | . . 1 . . . . . . . . . . . . . Flight 13 | . . 5 . . 1 . 3 2 . . . 1 . 1 . Utility 21 | 2 3 3 . . . . 2 6 . . 2 2 . 1 . Device 8 | 1 1 . . . . . . 4 . . 1 1 . . . Storage 2 | 1 . 1 . . . . . . . . . . . . . Processor 4 | . 1 . . . . . 2 1 . . . . . . . Hackware 2 | . . . . . . . . 1 . . . 1 . . . Protection 5 | . 1 2 . . . . . . . . 1 . . 1 . Artifact . | . . . . . . . . . . . . . . . . Weapon 14 | 2 3 5 . . . . 2 . . . 1 . . 1 . Energy Gun 3 | . 2 1 . . . . . . . . . . . . . Energy Cannon . | . . . . . . . . . . . . . . . . Ballistic Gun 3 | 2 . 1 . . . . . . . . . . . . . Ballistic Cannon . | . . . . . . . . . . . . . . . . Launcher 5 | . 1 3 . . . . . . . . . . . 1 . Special Weapon . | . . . . . . . . . . . . . . . . Impact Weapon . | . . . . . . . . . . . . . . . . Slashing Weapon 2 | . . . . . . . 1 . . . 1 . . . . Piercing Weapon . | . . . . . . . . . . . . . . . . Special Melee Weapon 1 | . . . . . . . 1 . . . . . . . . Unidentified Prototypes 4 | . . 3 . . 1 . . . . . . . . . . Parts Lost 27 | . 4 6 2 . 1 . . 1 . . 1 2 1 6 3 Power 7 | . 1 3 . . . . . . . . . 1 . 2 . Propulsion 11 | . . 2 1 . 1 . . . . . . . 1 3 3 Utility 5 | . 1 1 . . . . . 1 . . . 1 . 1 . Weapon 4 | . 2 . 1 . . . . . . . 1 . . . . Highest Loss Streak 6 | . 3 3 2 . 1 . . 1 . . 1 1 2 6 3 To Critical Strikes . | . . . . . . . . . . . . . . . . Average Backups 5 | 2 7 7 10 4 4 5 3 4 5 5 4 4 5 4 5 Power . | . 1 . . . . . . 1 1 1 . . 1 . . Propulsion 2 | 1 2 2 3 2 3 4 1 . 2 2 2 1 1 . . Utility 1 | . 1 1 4 1 . . 1 2 1 1 1 1 1 1 2 Weapon 1 | . 1 2 3 1 1 1 . . 1 1 1 1 1 1 2 Tool/Special . | . . . . . . . . . . . . . . . . Unused Backups 15 | . 3 . 3 1 . . 2 3 . . . . . 1 2 Power 1 | . 1 . . . . . . . . . . . . . . Propulsion 4 | . 2 . 1 . . . 1 . . . . . . . . Utility 8 | . . . 2 . . . 1 3 . . . . . 1 1 Weapon 1 | . . . . 1 . . . . . . . . . . . Tool/Special 1 | . . . . . . . . . . . . . . . 1 Average Slot Usage (%) 82 | . 91 95 71 45 44 45 64 83 100 100 96 98 93 81 33 Engine 6 | . 7 9 . . . . 5 6 6 6 9 5 . . . Core 1 | . 6 . . . . . . . . . 1 5 8 5 . Treads 9 | . 25 15 . . . . . . . . . . . . . Leg 4 | . 2 13 . . . . . . . . . . . . . Flight 16 | . . 2 27 27 26 27 32 30 40 40 35 35 31 28 9 Device 4 | . 5 . . . . . . 9 13 13 13 14 15 10 5 Storage 5 | . 14 11 11 . . . . . . . . . . . . Processor 4 | . . . . . . . 7 13 13 13 11 10 10 10 5 Hackware 1 | . . . . . . . . 2 6 6 5 9 10 10 5 Protection 10 | . 6 20 11 9 9 9 9 6 6 6 5 5 5 4 . Energy Gun 2 | . 8 2 . . . . . . . . . . . . . Ballistic Gun 4 | . 11 8 11 . . . . . . . . . . . . Launcher 5 | . 2 11 11 9 9 9 3 . . . . . . . . Slashing Weapon 2 | . . . . . . . 5 6 6 6 6 10 10 7 2 Peak Build Rating 72 | 7 9 16 16 13 14 14 35 56 50 50 63 72 67 71 49 Average Rating 23 | 5 7 12 12 12 12 14 22 45 50 50 55 68 66 58 23 On Entrance 32 | . 7 7 16 9 13 14 14 35 50 50 50 63 72 67 49 Avg Prop Armor Cover (%) 4 | . . 8 . . . . . 4 4 4 3 6 4 5 . Naked Turns 30 | . . . . . . . . . . . . . . . 30 Heaviest Build 31 | 15 16 24 15 2 2 2 13 15 15 15 25 31 22 26 21 Greatest Support 63 | 40 40 63 15 15 15 15 20 27 34 27 34 41 36 43 22 Greatest Overweight (x) 2 | 2 1 2 . . . . . . . . . 1 . . . Average Overweight (x) . | . . . . . . . . . . . . . . . . Largest Inventory Capacity 10 | 8 8 10 10 5 5 5 5 5 5 5 5 5 5 5 5 Average Capacity 6 | 7 8 8 7 5 5 5 5 5 5 5 5 5 5 5 5 Most Carried 10 | 6 8 10 10 5 5 5 5 5 5 5 5 5 5 5 5 Average Carried 5 | 2 7 7 7 4 4 5 4 4 5 5 4 4 5 4 5 Final Capacity 10 | 8 8 10 5 5 5 5 5 5 5 5 5 5 5 5 5 Final Carried 10 | 5 7 10 5 5 5 5 4 5 5 5 5 5 5 5 5 Class Distribution -------------------- 44% | Mutant 22% | Sprinter 15% | Scientist-Sprinter 11% | Scavenger-Mutant 6% | Hacker-Sprinter Dominant Class ---------------- Mutant | -10/Materials Mutant | -9/Materials Mutant | -9/Mines Mutant | -8/Materials Sprinter | -8/Storage Sprinter | -8/Recycling Sprinter | -8/Scraptown Scientist-Sprinter | -6/Factory Scientist-Sprinter | -6/Lower Caves Scientist-Sprinter | -6/Lower Caves Scientist-Sprinter | -5/Factory Scientist-Sprinter | -4/Factory Hacker-Sprinter | -4/Upper Caves Hacker-Sprinter | -4/Upper Caves Mutant | -4/Warlord Resources | -11 -10 -9 -9 -8 -8 -8 -8 -6 -6 -6 -5 -4 -4 -4 -4 ----------- Run | Yrd Mat Mat Min Mat Sto Rec Scr Fac Low Low Fac Fac Upp Upp War Matter Collected 1445 | 284 212 394 . . . . 122 213 . . 22 138 40 20 . Remotely . | . . . . . . . . . . . . . . . . Salvage Created 1556 | 112 340 879 . . . . . 35 . . 22 168 . . . Parts 123 | 9 20 71 . . . . . 5 . . 4 14 . . . Haulers Intercepted 4 | . 1 3 . . . . . . . . . . . . . Recyclers Shooed 1 | . . 1 . . . . . . . . . . . . . Parts Field Recycled . | . . . . . . . . . . . . . . . . Retrieved Matter . | . . . . . . . . . . . . . . . . Parts Self-Destructed . | . . . . . . . . . . . . . . . . Prevented . | . . . . . . . . . . . . . . . . Parts Restored . | . . . . . . . . . . . . . . . . Kills | -11 -10 -9 -9 -8 -8 -8 -8 -6 -6 -6 -5 -4 -4 -4 -4 ------- Run | Yrd Mat Mat Min Mat Sto Rec Scr Fac Low Low Fac Fac Upp Upp War Combat Hostiles Destroyed 32 | . 9 22 . . . . . . . . . 1 . . . Melee 1 | . . . . . . . . . . . . 1 . . . Guns 10 | . 6 4 . . . . . . . . . . . . . AOE 21 | . 3 18 . . . . . . . . . . . . . Classes Destroyed 11 | 3 4 4 . . . . . . . . . . . . . Worker 9 | 1 . 5 . . . . . . . . . 3 . . . Builder 3 | . . 2 . . . . . 1 . . . . . . . Tunneler 3 | 1 . . . . . . . 1 . . 1 . . . . Hauler 4 | . 1 3 . . . . . . . . . . . . . Recycler 1 | 1 . . . . . . . . . . . . . . . Mechanic 1 | . 1 . . . . . . . . . . . . . . Operator 5 | . 1 2 . . . . . . . . . 2 . . . Watcher 4 | . . 4 . . . . . . . . . . . . . Swarmer 8 | . . 8 . . . . . . . . . . . . . Grunt 18 | . 9 9 . . . . . . . . . . . . . Sentry 6 | . . 5 . . . . . . . . . 1 . . . Best Kill Streak 11 | 1 4 11 . . . . . 1 . . 1 3 . . . Combat Bots Only 7 | . 4 7 . . . . . . . . . 1 . . . Max Kills in Single Turn 4 | 1 1 4 . . . . . 1 . . 1 1 . . . Gunslinging . | . . . . . . . . . . . . . . . . Exploded 3 | . 1 3 . . . . . . . . . . . . . Melee 1 | . . . . . . . . . . . . 1 . . . Uniques/NPCs Destroyed . | . . . . . . . . . . . . . . . . Combat | -11 -10 -9 -9 -8 -8 -8 -8 -6 -6 -6 -5 -4 -4 -4 -4 -------- Run | Yrd Mat Mat Min Mat Sto Rec Scr Fac Low Low Fac Fac Upp Upp War Hostile Shots Fired 325 | . 55 74 5 13 36 . 2 12 . . 4 27 4 43 50 Missed 142 | . 9 24 2 10 20 . . 10 . . 2 16 3 27 19 Hits 183 | . 46 50 3 3 16 . 2 2 . . 2 11 1 16 31 Projectile 183 | . 46 50 3 3 16 . 2 2 . . 2 11 1 16 31 AOE 4 | . . . 4 . . . . . . . . . . . . Critical Strikes 10 | . 2 3 . . . . . . . . . 1 . 2 2 Actively Blocked 1 | . . . . . . . . . . . . 1 . . . Damage Taken 4161 | . 794 981 161 45 255 . 21 93 . . 36 258 21 287 1209 Core 1868 | . 216 157 83 29 184 . 11 29 . . . . . 21 1138 Absorbed by Shields . | . . . . . . . . . . . . . . . . Redirected to Shielding 170 | . 14 33 . . . . . 21 . . . 78 13 11 . Ignored by Resistances 8 | . . . . . . . . . . . . . . 8 . Core Remaining (%) 68 | 100 13 . 40 . . . 59 . . 96 100 . . . . Volleys Fired 100 | 7 56 36 . . . . . . . . . . . 1 . Largest 2 | 2 2 2 . . . . . . . . . . . 1 . Hottest 70 | 40 70 63 . . . . . . . . . . . 43 . Shots Fired 160 | 14 87 58 . . . . . . . . . . . 1 . Gun 117 | 14 81 22 . . . . . . . . . . . . . Cannon . | . . . . . . . . . . . . . . . . Launcher 43 | . 6 36 . . . . . . . . . . . 1 . Special . | . . . . . . . . . . . . . . . . Kinetic 90 | 14 54 22 . . . . . . . . . . . . . Thermal 25 | . 25 . . . . . . . . . . . . . . Explosive 24 | . 6 18 . . . . . . . . . . . . . Electromagnetic 21 | . 2 18 . . . . . . . . . . . 1 . Robot Hit Streak 18 | 2 18 10 . . . . . . . . . . . . . Robot Miss Streak 7 | 3 4 7 . . . . . . . . . . . . . Penetration Max . | . . . . . . . . . . . . . . . . Secondary Targets . | . . . . . . . . . . . . . . . . Shots Hit Robots 129 | 7 66 33 . . . . 9 3 . . 1 9 . . 1 Core Hits 88 | 4 26 49 . . . . . 1 . . 1 7 . . . Critical Kills 2 | . . 2 . . . . . . . . . . . . . Critical Parts Destroyed . | . . . . . . . . . . . . . . . . Critical Strikes 2 | . . 2 . . . . . . . . . . . . . Destroy 2 | . . 2 . . . . . . . . . . . . . Melee Attacks 59 | . . . . . . . 9 13 . . 13 21 . 2 1 Impact . | . . . . . . . . . . . . . . . . Slashing 49 | . . . . . . . . 12 . . 13 21 . 2 1 Piercing . | . . . . . . . . . . . . . . . . Sneak Attacks 17 | . . . . . . . 9 3 . . 1 3 . . 1 Combat Hostiles . | . . . . . . . . . . . . . . . . Follow-up Attacks 2 | . . . . . . . . . . . . 2 . . . Damage Inflicted 4322 | 108 1300 2110 . . . . . 120 . . 95 518 . . 71 Guns 1154 | 108 718 328 . . . . . . . . . . . . . Cannons . | . . . . . . . . . . . . . . . . Explosions 2359 | . 580 1779 . . . . . . . . . . . . . Melee 804 | . . . . . . . . 120 . . 95 518 . . 71 Ramming 5 | . 2 3 . . . . . . . . . . . . . Kinetic 907 | 108 471 328 . . . . . . . . . . . . . Thermal 745 | . 242 503 . . . . . . . . . . . . . Explosive 1337 | . 558 779 . . . . . . . . . . . . . Electromagnetic 524 | . 27 497 . . . . . . . . . . . . . Impact . | . . . . . . . . . . . . . . . . Slashing 804 | . . . . . . . . 120 . . 95 518 . . 71 Piercing . | . . . . . . . . . . . . . . . . Highest Corruption 1 | . 1 1 1 . . . . . . . . . . . . Average Corruption 1 | . 1 1 1 . . . . . . . . . . . . Corruption Purged . | . . . . . . . . . . . . . . . . Corruption Blocked . | . . . . . . . . . . . . . . . . Overload Shots . | . . . . . . . . . . . . . . . . Overflow Damage 205 | . 14 96 . . . . . 20 . . . 75 . . . Projectiles . | . . . . . . . . . . . . . . . . Explosions 110 | . 14 96 . . . . . . . . . . . . . Melee 95 | . . . . . . . . 20 . . . 75 . . . Knockbacks . | . . . . . . . . . . . . . . . . Impact . | . . . . . . . . . . . . . . . . Kinetic . | . . . . . . . . . . . . . . . . Secondary . | . . . . . . . . . . . . . . . . Self-Inflicted Damage 476 | . 67 409 . . . . . . . . . . . . . Shots 14 | . 3 11 . . . . . . . . . . . . . Rammed 3 | . 2 1 . . . . . . . . . . . . . Targets Rammed 4 | . 2 2 . . . . . . . . . . . . . Kicked . | . . . . . . . . . . . . . . . . Crushed 1 | . . 1 . . . . . . . . . . . . . Highest Temperature 220 | . 69 28 . . . . . 4 95 . 24 18 4 220 . Average Temperature 28 | . 13 8 . . . . . 2 51 . 4 5 3 79 . Received Heat Transfer 920 | . 393 207 . 18 108 . . 15 . . . 30 . 113 36 Siege Activations . | . . . . . . . . . . . . . . . . Martial Activations . | . . . . . . . . . . . . . . . . Shielding Activations . | . . . . . . . . . . . . . . . . Robots Disrupted . | . . . . . . . . . . . . . . . . Combat Hostiles . | . . . . . . . . . . . . . . . . Robots Corrupted . | . . . . . . . . . . . . . . . . Combat Hostiles . | . . . . . . . . . . . . . . . . Parts Fried . | . . . . . . . . . . . . . . . . Impact Corruptions . | . . . . . . . . . . . . . . . . Robots Melted . | . . . . . . . . . . . . . . . . Combat Hostiles . | . . . . . . . . . . . . . . . . Parts Melted . | . . . . . . . . . . . . . . . . Heat Transferred 1000 | . 550 450 . . . . . . . . . . . . . Parts Sabotaged . | . . . . . . . . . . . . . . . . Parts Stolen . | . . . . . . . . . . . . . . . . Parts Stripped . | . . . . . . . . . . . . . . . . Power Chain Reactions 5 | . 1 4 . . . . . . . . . . . . . Alert | -11 -10 -9 -9 -8 -8 -8 -8 -6 -6 -6 -5 -4 -4 -4 -4 ------- Run | Yrd Mat Mat Min Mat Sto Rec Scr Fac Low Low Fac Fac Upp Upp War Maximum Alert Level 2 | . . 2 . . 1 . . . . . . . . . . Low Security (%) 74 | 100 100 33 100 100 81 100 . 100 . . 100 100 . . . Level 1 15 | . . 41 . . 18 . . . . . . . . . . Level 2 9 | . . 25 . . . . . . . . . . . . . Level 3 . | . . . . . . . . . . . . . . . . Level 4 . | . . . . . . . . . . . . . . . . Level 5 . | . . . . . . . . . . . . . . . . High Security . | . . . . . . . . . . . . . . . . Max Security . | . . . . . . . . . . . . . . . . Peak Influence 577 | 5 96 577 168 76 252 97 . 48 . . 70 48 . . . Initial 168 | . 3 40 168 57 14 97 . . . . 2 29 . . . Average 115 | 1 24 268 158 30 81 85 . 11 . . 19 30 . . . Influence Increases 2227 | 15 318 916 . 64 311 5 . 138 . . 131 134 . 195 . Destroy 0b10 Robot/C 640 | . 180 440 . . . . . . . . . 20 . . . Destroy 0b10 Robot/NC 150 | 15 15 80 . . . . . 10 . . 5 25 . . . Destroy Leader 156 | . 42 104 . . . . . . . . . 10 . . . Successful Hack 163 | . 17 16 . 19 11 5 . 29 . . 44 22 . . . Disable Machine 135 | . 15 105 . . . . . 15 . . . . . . . Destroy Structure 233 | . 34 156 . . . . . 9 . . 22 12 . . . Partial Spotted 195 | . . 15 . . 60 . . 60 . . 45 15 . . . Lose Combat Pursuer 555 | . 15 . . 45 240 . . 15 . . 15 30 . 195 . Influence Decreases 2227 | 10 227 579 285 177 94 185 72 96 36 2 75 131 63 20 175 Entered New Map 912 | . 2 56 265 91 21 155 72 . 16 2 2 31 24 . 175 Time Decay 852 | 10 120 313 . 30 50 30 . 96 20 . 54 80 29 20 . Lost Part 156 | . 40 60 20 . 4 . . . . . 2 20 10 . . Lost Ally 10 | . . . . 10 . . . . . . . . . . . Purge Threat 297 | . 65 150 . 46 19 . . . . . 17 . . . . Squads Dispatched 12 | . 1 2 . 2 2 . . 1 . . 3 . . 1 . Investigation 6 | . . 1 . . 1 . . 1 . . 3 . . . . Extermination . | . . . . . . . . . . . . . . . . Reinforcement 5 | . 1 1 . 2 1 . . . . . . . . . . Assault 1 | . . . . . . . . . . . . . . 1 . Garrison . | . . . . . . . . . . . . . . . . Intercept . | . . . . . . . . . . . . . . . . Searches Triggered . | . . . . . . . . . . . . . . . . Construction Impeded 1 | . . 1 . . . . . . . . . . . . . Haulers Reinforced . | . . . . . . . . . . . . . . . . Active Scanning Responses . | . . . . . . . . . . . . . . . . Cargo Convoy Interrupts . | . . . . . . . . . . . . . . . . Stealth | -11 -10 -9 -9 -8 -8 -8 -8 -6 -6 -6 -5 -4 -4 -4 -4 --------- Run | Yrd Mat Mat Min Mat Sto Rec Scr Fac Low Low Fac Fac Upp Upp War Distress Signals 6 | . . 2 . 3 1 . . . . . . . . . . Communications Jammed . | . . . . . . . . . . . . . . . . Distress Signals . | . . . . . . . . . . . . . . . . Times Spotted 131 | . 14 34 2 12 18 . 1 7 1 . 2 9 2 15 14 Peak Tracking Total 15 | . 4 5 2 9 13 . 1 5 1 . 2 7 2 14 15 Tactical Retreats 14 | . 1 . . 1 5 . . 1 . . 1 2 . 3 . ECM-based Alert Blocks 1 | . . . . . . . . . . . . 1 . . . Traps | -11 -10 -9 -9 -8 -8 -8 -8 -6 -6 -6 -5 -4 -4 -4 -4 ------- Run | Yrd Mat Mat Min Mat Sto Rec Scr Fac Low Low Fac Fac Upp Upp War Traps Triggered 3 | . 1 . . . . . . 2 . . . . . . . Indirectly . | . . . . . . . . . . . . . . . . Trap Hack Attempts . | . . . . . . . . . . . . . . . . Triggered . | . . . . . . . . . . . . . . . . Disarmed . | . . . . . . . . . . . . . . . . Reprogrammed . | . . . . . . . . . . . . . . . . Reused . | . . . . . . . . . . . . . . . . Traps Extracted . | . . . . . . . . . . . . . . . . Installed . | . . . . . . . . . . . . . . . . Triggered . | . . . . . . . . . . . . . . . . Machines | -11 -10 -9 -9 -8 -8 -8 -8 -6 -6 -6 -5 -4 -4 -4 -4 ---------- Run | Yrd Mat Mat Min Mat Sto Rec Scr Fac Low Low Fac Fac Upp Upp War Machines Disabled 9 | . 1 7 . . . . . 1 . . . . . . . Max in Single Turn 3 | . 1 3 . . . . . 1 . . . . . . . Garrison Access 2 | . . . . . . . . 1 . . 1 . . . . Machines Repaired . | . . . . . . . . . . . . . . . . Machines Dismantled . | . . . . . . . . . . . . . . . . Machines Sabotaged . | . . . . . . . . . . . . . . . . Overloaded Fab Kills . | . . . . . . . . . . . . . . . . Hacking | -11 -10 -9 -9 -8 -8 -8 -8 -6 -6 -6 -5 -4 -4 -4 -4 --------- Run | Yrd Mat Mat Min Mat Sto Rec Scr Fac Low Low Fac Fac Upp Upp War Machines Accessed 47 | . 4 11 . 5 7 2 . 6 1 . 6 5 . . . Terminals 32 | . 3 8 . 5 5 1 . 2 1 . 3 4 . . . Fabricators 4 | . . . . . . . . 2 . . 2 . . . . Repair Stations 1 | . . . . . 1 . . . . . . . . . . Recycling Units 5 | . 1 1 . . 1 1 . . . . . 1 . . . Scanalyzers 3 | . . 2 . . . . . 1 . . . . . . . Garrison Access 2 | . . . . . . . . 1 . . 1 . . . . Total Hacks 147 | . 10 36 . 13 18 8 . 19 1 . 20 22 . . . Successful 87 | . 6 21 . 5 8 5 . 14 1 . 13 14 . . . Failed 59 | . 4 14 . 8 10 3 . 5 . . 7 8 . . . Catastrophic 7 | . 1 1 . 1 1 . . . . . 2 1 . . . Database Lockouts 1 | . . 1 . . . . . . . . . . . . . Manual 52 | . 1 9 . 5 6 4 1 2 . . 8 16 . . . Terminals 103 | . 8 27 . 13 14 5 . 4 1 . 11 20 . . . Fabricators 8 | . . . . . . . . 4 . . 4 . . . . Repair Stations 2 | . . . . . 2 . . . . . . . . . . Recycling Units 12 | . 2 3 . . 2 3 . . . . . 2 . . . Scanalyzers 15 | . . 6 . . . . . 9 . . . . . . . Garrison Access 7 | . . . . . . . . 2 . . 5 . . . . Terminal Hacks 42 | . 4 13 . 3 6 3 . 1 1 . 3 8 . . . Record 3 | . . 1 . . . . . . 1 . . 1 . . . Robot Analysis 4 | . . 1 . 1 1 . . . . . 1 . . . . Prototype ID Bank 5 | . . 2 . 1 1 . . 1 . . . . . . . Open Door 2 | . . . . . 2 . . . . . . . . . . Open DSF 1 | . . . . . . . . . . . . 1 . . . Branch Access Points 2 | . 1 . . . . 1 . . . . . . . . . Emergency Access Points 1 | . . . . . . 1 . . . . . . . . . Terminal Index 1 | . . . . . . . . . . . . 1 . . . Repair Station Index 1 | . . . . . . . . . . . . 1 . . . Recycling Unit Index 2 | . 1 1 . . . . . . . . . . . . . Alert Level 4 | . . 2 . . 1 . . . . . 1 . . . . Unreport Threat 5 | . 1 1 . 1 1 . . . . . 1 . . . . Locate Traps 3 | . . 2 . . . . . . . . . 1 . . . Patrol Status 1 | . . . . . . . . . . . . 1 . . . Investigation Status 1 | . . . . . . . . . . . . 1 . . . Recall Investigation 1 | . . 1 . . . . . . . . . . . . . Hauler Manifests 1 | . 1 . . . . . . . . . . . . . . Registered Prototypes 1 | . . 1 . . . . . . . . . . . . . Zone Layout 3 | . . 1 . . . 1 . . . . . 1 . . . Fabricator Hacks 6 | . . . . . . . . 2 . . 4 . . . . Load Schematic 3 | . . . . . . . . 1 . . 2 . . . . Build 3 | . . . . . . . . 1 . . 2 . . . . Repair Station Hacks . | . . . . . . . . . . . . . . . . Recycling Unit Hacks 7 | . 1 1 . . 2 2 . . . . . 1 . . . Report Inventory 3 | . 1 . . . 1 . . . . . . 1 . . . Retrieve Matter 2 | . . . . . 1 1 . . . . . . . . . Retrieve Components 2 | . . 1 . . . 1 . . . . . . . . . Scanalyzer 13 | . . 5 . . . . . 8 . . . . . . . Insert Component 3 | . . 2 . . . . . 1 . . . . . . . Analyze 2 | . . 1 . . . . . 1 . . . . . . . Retrieve Study 8 | . . 2 . . . . . 6 . . . . . . . Garrison Access Hacks 2 | . . . . . . . . 1 . . 1 . . . . Seal Access 2 | . . . . . . . . 1 . . 1 . . . . Unauthorized Hacks 17 | . 1 2 . 2 . . . 2 . . 5 5 . . . Terminals 16 | . 1 2 . 2 . . . 2 . . 5 4 . . . Assimilate 1 | . . . . 1 . . . . . . . . . . . Botnet 9 | . 1 2 . 1 . . . 1 . . 3 1 . . . Skim 6 | . . . . . . . . 1 . . 2 3 . . . Fabricators . | . . . . . . . . . . . . . . . . Repair Stations . | . . . . . . . . . . . . . . . . Recycling Units 1 | . . . . . . . . . . . . 1 . . . Monitor 1 | . . . . . . . . . . . . 1 . . . Scanalyzers . | . . . . . . . . . . . . . . . . Garrison Access . | . . . . . . . . . . . . . . . . Data Cores Recovered 3 | . . 1 . . . . . . . . . 2 . . . Used 1 | . . . . . . . . . . . . 1 . . . Hacking Detections 40 | . 4 10 . 5 4 2 . 4 1 . 6 4 . . . Full Trace Events 8 | . . 3 . . 1 . . 1 . . 3 . . . . Feedback Events 2 | . . 1 . . . . . . . . 1 . . . . Corruption 2 | . . 1 . . . . . . . . 1 . . . . Feedback Blocked . | . . . . . . . . . . . . . . . . Robot Schematics Acquired . | . . . . . . . . . . . . . . . . Robots Built . | . . . . . . . . . . . . . . . . Authchips . | . . . . . . . . . . . . . . . . Time . | . . . . . . . . . . . . . . . . Total Robot Build Rating . | . . . . . . . . . . . . . . . . Part Schematics Acquired 2 | . . 1 . . . . . 1 . . . . . . . Parts Built . | . . . . . . . . . . . . . . . . Authchips . | . . . . . . . . . . . . . . . . Time 247 | . . . . . . . . 49 . . 198 . . . . Total Part Build Rating . | . . . . . . . . . . . . . . . . Part Studies Acquired 8 | . . 2 . . . . . 6 . . . . . . . Parts Repaired . | . . . . . . . . . . . . . . . . Time . | . . . . . . . . . . . . . . . . Parts Recycled . | . . . . . . . . . . . . . . . . Recycled Matter . | . . . . . . . . . . . . . . . . Retrieved Matter . | . . . . . . . . . . . . . . . . Retrieved Components 3 | . . 1 . . . 2 . . . . . . . . . Parts Scanalyzed 2 | . . 1 . . . . . 1 . . . . . . . Part Schematics Acquired 2 | . . 1 . . . . . 1 . . . . . . . Parts Damaged . | . . . . . . . . . . . . . . . . Bothacking | -11 -10 -9 -9 -8 -8 -8 -8 -6 -6 -6 -5 -4 -4 -4 -4 ------------ Run | Yrd Mat Mat Min Mat Sto Rec Scr Fac Low Low Fac Fac Upp Upp War Used RIF Installer . | . . . . . . . . . . . . . . . . Robots Hacked 9 | . . . . . . . 8 1 . . . . . . . Non-combat 5 | . . . . . . . 4 1 . . . . . . . Combat 4 | . . . . . . . 4 . . . . . . . . Robot Hacks Applied 10 | . . . . . . . 9 1 . . . . . . . parse_system 9 | . . . . . . . 9 . . . . . . . . find_chute 1 | . . . . . . . . 1 . . . . . . . Relay Couplers Released . | . . . . . . . . . . . . . . . . Fabnet Peak Effective % . | . . . . . . . . . . . . . . . . Robots Rewired . | . . . . . . . . . . . . . . . . Allies Hacked . | . . . . . . . . . . . . . . . . Hacks Repelled . | . . . . . . . . . . . . . . . . Allies | -11 -10 -9 -9 -8 -8 -8 -8 -6 -6 -6 -5 -4 -4 -4 -4 -------- Run | Yrd Mat Mat Min Mat Sto Rec Scr Fac Low Low Fac Fac Upp Upp War Total Allies 1 | . . . . 1 . . . . . . . . . . . Largest Group 1 | . . . . 1 . . . . . . . . . . . Highest-Rated Group 10 | . . . . 10 . . . . . . . . . . . Highest-Rated Ally 10 | . . . . 10 . . . . . . . . . . . Total Orders . | . . . . . . . . . . . . . . . . Ally Attacks . | . . . . . . . . . . . . . . . . Total Damage . | . . . . . . . . . . . . . . . . Kills . | . . . . . . . . . . . . . . . . Allies Corrupted . | . . . . . . . . . . . . . . . . Allies Melted . | . . . . . . . . . . . . . . . . Intel | -11 -10 -9 -9 -8 -8 -8 -8 -6 -6 -6 -5 -4 -4 -4 -4 ------- Run | Yrd Mat Mat Min Mat Sto Rec Scr Fac Low Low Fac Fac Upp Upp War Active Infowar (turns) 998 | 86 208 . . . . . . 126 44 5 142 166 78 118 25 Sensors 704 | . . . . . . . . 126 44 5 142 166 78 118 25 Structural 634 | . . . . . . . . 56 44 5 142 166 78 118 25 Seismic 294 | 86 208 . . . . . . . . . . . . . . ECM 6 | . . . . . . . . . . . . 6 . . . Robot Analysis Total 4 | . . 1 . 1 1 . . . . . 1 . . . . Derelict Logs Recovered 3 | . . . . . . . . . 1 . . . . 2 . Drone Launches . | . . . . . . . . . . . . . . . . Drone Recoveries . | . . . . . . . . . . . . . . . . Exploration | -11 -10 -9 -9 -8 -8 -8 -8 -6 -6 -6 -5 -4 -4 -4 -4 ------------- Run | Yrd Mat Mat Min Mat Sto Rec Scr Fac Low Low Fac Fac Upp Upp War Turns Passed 3239 | 116 617 912 7 106 134 71 415 253 44 5 142 166 78 118 55 Spaces Moved 5883 | 51 285 642 19 288 394 214 1368 682 194 13 407 483 301 400 142 Core 68 | 4 . . . . . 4 . . . . . . . . 60 Treads 536 | 47 245 244 . . . . . . . . . . . . . Legs 297 | . 40 257 . . . . . . . . . . . . . Wheels . | . . . . . . . . . . . . . . . . Hover . | . . . . . . . . . . . . . . . . Flight 4982 | . . 141 19 288 394 210 1368 682 194 13 407 483 301 400 82 Fastest Speed 19 | 50 120 34 34 34 32 32 26 24 21 24 21 19 22 19 27 Average Speed 44 | 156 154 116 35 34 32 32 28 24 22 24 23 23 25 25 36 Slowest Speed 240 | 160 190 240 37 34 37 50 32 26 24 24 24 100 27 27 50 Overloaded Moves . | . . . . . . . . . . . . . . . . Propulsion Burnouts . | . . . . . . . . . . . . . . . . Robots Hopped 26 | . . 1 . 4 11 1 . 2 . . 1 5 . 1 . Potential Cave-ins . | . . . . . . . . . . . . . . . . Cave-ins Triggered . | . . . . . . . . . . . . . . . . Exploration Rate (%) 38 | 4 43 70 12 35 69 59 81 18 44 5 14 15 47 64 32 Regions Visited 15 Branch Regions 9 Pre-discovered Areas 1 | . . . . . 1 . . . . . . . . . . Known Exits Taken 1 | . 1 . . . . . . . . . . . . . . Unknown Exits Taken 14 | 1 . 1 1 1 1 1 1 1 1 1 1 1 1 1 . Scrap Searched 8 | . . . . . . . 3 . . . . . 3 2 . Spaces Dug 44 | . . 18 . . . . . 9 . . 11 6 . . . Terrain Destroyed 237 | . 38 173 . . . . . 9 . . 11 6 . . . Melee 26 | . . . . . . . . 9 . . 11 6 . . . Projectile . | . . . . . . . . . . . . . . . . AOE 211 | . 38 173 . . . . . . . . . . . . . Terrain Rammed . | . . . . . . . . . . . . . . . . Walls Destroyed . | . . . . . . . . . . . . . . . . Machines Disabled . | . . . . . . . . . . . . . . . . Actions | -11 -10 -9 -9 -8 -8 -8 -8 -6 -6 -6 -5 -4 -4 -4 -4 --------- Run | Yrd Mat Mat Min Mat Sto Rec Scr Fac Low Low Fac Fac Upp Upp War Total 6218 | 70 374 737 19 293 387 214 1398 739 193 14 426 498 302 411 143 Wait 53 | . 9 14 . . 3 . . 24 . 2 1 . . . . Move 5817 | 50 284 639 18 279 372 211 1367 677 193 12 404 472 300 397 142 Hop 25 | . . 1 . 4 10 1 . 2 . . 1 5 . 1 . Pick Up 49 | 6 7 8 . 5 1 . 7 9 . . 2 2 . 2 . Fast Attach 27 | 6 3 7 . . . . 3 4 . . 1 2 1 . . Attach 20 | 1 2 3 . 1 1 . 3 2 . . 2 2 . 3 . Detach 4 | . . 1 . . . . 1 . . . . . . 2 . Swap 29 | . 6 16 . . . . 2 2 . . 2 . . 1 . Drop 36 | . 5 10 1 4 . . 6 6 . . 1 . 1 2 . Fire 100 | 7 56 36 . . . . . . . . . . . 1 . Melee 52 | . . . . . . . 9 13 . . 12 15 . 2 1 Ram . | . . . . . . . . . . . . . . . . Kick . | . . . . . . . . . . . . . . . . Crush 4 | . 2 2 . . . . . . . . . . . . . Escape Stasis . | . . . . . . . . . . . . . . . . Rewire 2 | . . . . . . 2 . . . . . . . . . Trap . | . . . . . . . . . . . . . . . . Miscellaneous . | . . . . . . . . . . . . . . . . Route ------- -11/Scrapyard -10/Materials (discovered 3 exits: *Mat / Min x2) -9/Materials (discovered 2 exits: *Mat / [*Min]) -9/Mines -8/Materials -8/Storage -8/Recycling -8/Scraptown (discovered 2 exits: *Fac x2) -6/Factory -6/Lower Caves -6/Lower Caves -5/Factory -4/Factory -4/Upper Caves -4/Upper Caves (discovered 2 exits: Res / [*War]) -4/Warlord History --------- Turn | Location | Event 20 | -11/Scrapyard | Discovered new exit (range 16) 117 | -11/Scrapyard | Entered Materials 174 | -10/Materials | Identified exit to Mines 331 | -10/Materials | Build established: Mutant 407 | -10/Materials | Lost 3 parts (1u2w) 611 | -10/Materials | Core integrity fell below 50% 617 | -10/Materials | Derelicts attacked the area 642 | -10/Materials | Core integrity fell below 20% 686 | -10/Materials | Discovered new exit (range 15) 711 | -10/Materials | Identified exit to Materials 734 | -10/Materials | Entered another Materials area 734 | -9/Materials | Evolved 2 slots: Propulsion x1, Utility x1 1005 | -9/Materials | Discovered new exit (range 3) 1019 | -9/Materials | Central database locked down 1088 | -9/Materials | Destroyed 7 combat bots 1470 | -9/Materials | Build established: Scavenger-Mutant 1595 | -9/Materials | Lost 3 parts (1p1n1u) 1638 | -9/Materials | Discovered new exit (range 12) 1646 | -9/Materials | Entered Mines 1648 | -9/Mines | Assembled infested the area 1648 | -9/Mines | Discovered new exit (range 14) 1653 | -9/Mines | Entered Materials 1653 | -8/Materials | Evolved 2 slots: Propulsion x1, Utility x1 1754 | -8/Materials | Discovered new exit (range 15) 1759 | -8/Materials | Entered Storage 1777 | -8/Storage | Build established: Mutant 1818 | -8/Storage | Learned location of Armory (-4) 1892 | -8/Storage | Used back door to open Recycling access 1892 | -8/Storage | Discovered new exit (range 4) 1893 | -8/Storage | Entered Recycling 1956 | -8/Recycling | Scanned before Scraplab entrance 1961 | -8/Recycling | Entered Scraplab 1963 | -8/Recycling | Discovered new exit (range 3) 1964 | -8/Recycling | Entered Scraptown 2027 | -8/Scraptown | Discovered new exit (range 11) 2059 | -8/Scraptown | Visited Awakened 2069 | -8/Scraptown | Visited The Evicted 2079 | -8/Scraptown | Visited UFD Registry 2082 | -8/Scraptown | Build established: Sprinter 2089 | -8/Scraptown | Visited SPCMW 2175 | -8/Scraptown | Visited Comm Corps 2184 | -8/Scraptown | Registered with UFD as "Hellfunk" 2196 | -8/Scraptown | Visited Research Penetration Think Tank 2203 | -8/Scraptown | Visited Science Testing Area 2229 | -8/Scraptown | Discovered new exit (range 3) 2241 | -8/Scraptown | Visited Botcube Research 2242 | -8/Scraptown | Found Botcube 2248 | -8/Scraptown | Visited A0-MCA Data Center 2250 | -8/Scraptown | Given a C+ rating by A0-MCA 2253 | -8/Scraptown | Found A0-MCA's Component Scanner 2267 | -8/Scraptown | Visited Scrap Suit Storage 2293 | -8/Scraptown | Found Scrap Suit 2327 | -8/Scraptown | Met Optimus 2327 | -8/Scraptown | Accepted into 0bPrime 2363 | -8/Scraptown | Civil war broke out across Scraptown 2379 | -8/Scraptown | Entered Factory 2379 | -6/Factory | Evolved 4 slots: Propulsion x2, Utility x2 2630 | -6/Factory | Discovered new exit (range 7) 2632 | -6/Factory | Entered Lower Caves 2669 | -6/Lower Caves | Learned Factory interactive machine intel 2674 | -6/Lower Caves | Discovered new exit (range 10) 2676 | -6/Lower Caves | Entered another Lower Caves area 2678 | -6/Lower Caves | Discovered new exit (range 12) 2681 | -6/Lower Caves | Entered Factory 2681 | -5/Factory | Evolved 2 slots: Power x1, Utility x1 2682 | -5/Factory | Loaded intel: 54 interactive machine locations 2813 | -5/Factory | Discovered new exit (range 7) 2822 | -5/Factory | Build established: Scientist-Sprinter 2823 | -5/Factory | Entered another Factory area 2823 | -4/Factory | Evolved 2 slots: Propulsion x1, Utility x1 2978 | -4/Factory | Discovered new exit (range 13) 2978 | -4/Factory | Spotted B-86 Titan 2988 | -4/Factory | Spotted B-86 Titan 2989 | -4/Factory | Entered Upper Caves 3062 | -4/Upper Caves | Discovered new exit (range 12) 3067 | -4/Upper Caves | Entered another Upper Caves area 3109 | -4/Upper Caves | Attracted the attention of an 0b10 outpost 3118 | -4/Upper Caves | Attracted the attention of an 0b10 checkpoint 3121 | -4/Upper Caves | Learned 4 Research zone layouts 3157 | -4/Upper Caves | Lost 6 parts (2p3n1u) 3180 | -4/Upper Caves | Discovered new exit (range 13) 3182 | -4/Upper Caves | Identified exit to Research 3185 | -4/Upper Caves | Entered Warlord 3209 | -4/Warlord | Attacked by Warlord forces 3210 | -4/Warlord | Released all parts (9) 3214 | -4/Warlord | Spotted GN-AHQ(B) 3216 | -4/Warlord | Core integrity fell below 50% 3216 | -4/Warlord | Spotted RS-HMG(B) 3221 | -4/Warlord | Core integrity fell below 20% 3240 | -4/Warlord | Lost 3 parts (3n) 3240 | -4/Warlord | Destroyed by XH-SUZ(M) with Heavy Riot Gun Last Messages --------------- 03209_ ANNOUNCEMENT: Internal threat detected, destroy unregistered bots on sight. 03209_ Xenon Bombardment Thruster+ destroyed. 03209_ Imp. VTOL Module destroyed. 03209_ VTOL Module+ destroyed. 03209_ Knocked back. 03210_ Released Axe. 03210_ Released Imp. Melee Analysis Suite. 03210_ Released Imp. VTOL Module. 03210_ Released Adv. Sensor Array. 03210_ Released Imp. Hacking Suite. 03210_ Released System Guard. 03210_ Released Structural Scanner. 03210_ Released System Shield. 03210_ Released Antimatter Reactor. 03211_ Knocked back. 03220_ Penetrated by Slug. 03220_ Knocked back. 03227_ Slug penetrates Wall. 03240_ Door malfunctions. Map ----- +----------------------------------------------------+ | | | | | | | | | | | | | | | | | | | | | | | | | ?????????????????????????????????????????????????? | | ?????????????????????????????????????????????????? | | ?????????????????????????????????????????????????? | | ?????????????????????????????????????????????????? | | ?????????????????????????????????????????????????? | | ???????????????????###########???????????????????? | | ???????????????????# #???????????????????? | | ???????????????????# #???????????????????? | | ???????????????????# #???????????????????? | | ???????????????????+ #???????????????????? | | ???????????????????# #???????????????????? | | ???????????????????# M ###########?????????? | | ???????????????????# # #?????????? | | ???????????????????# @ # """ """ #?????????? | | ??????????????# #####/##### """ """ #?????????? | | ??????????????# + """ """ #?????????? | | ??????????????# #### #?????????? | | ??????????????# g #??# #?????????? | | ??????????????### ##### #??# #?????????? | | ????????????????#?????# #??# #?????????? | | ?????????????????????? ######+####+#?????????? | | ?????????????????????# ##????????? | | ?????????????????????+ % ##????????? | | ?????????????????????# """ ##????????? | | ?????????????????????# ##### """ ###???????? | | ?????????????????????###+###???# """ ###???????? | | ??????????????????????# ???# ##???????? | | ??????????????????????# #??# ##???##""# | | ??????????????????????# #??# ##???##""# | | ???????????????####???# #??#####" #######""# | | ???????????????" "##??# #???####" #######""# | | ???????????????" "##?# ###### # "" | | ??????????????? ""#?? ###### # "" | | ???????????????" ""??? ## ### # "" | | ?????????????##" "##??? # % + | | ???????##+???# #??? # % + | | ??????? # #### #???? # + | | ??????? # #### ### # % + | +----------------------------------------------------+ Best States ------------- Heat Dissipation 43 Energy Generation 26 Energy Capacity 325 Matter Stores 300 Matter Capacity 300 Sight Range 16 Robot Scan Range 16 Terrain Scan Density 10 ECM Strength 2 Power Amplification 20 Corruption Containment 8 Armor Coverage 150 Resistance: KI 10 Propulsion Shielding 66 Utility Shielding 33 Evasion (%) 75 Melee Accuracy 6 Recoil Reduction 3 Offensive Hacking 12 Defensive Hacking 10 Item Schematics ----------------- Imp. Flight Unit | -9/Materials | Scanalyzed Xenon Bombardment Thruster | -6/Factory | Scanalyzed Robot Schematics ------------------ None Fabricated ------------ Nothing Repaired ---------- Nothing Studied --------- Aluminum Leg | -9/Materials | Hacked Grenade Launcher | -9/Materials | Hacked VTOL Module | -6/Factory | Hacked Lgt. Deuterium Engine | -6/Factory | Hacked Xenon Bombardment Thruster | -6/Factory | Hacked Mining Claw | -6/Factory | Hacked Imp. Datajack | -6/Factory | Hacked Deuterium Engine | -6/Factory | Hacked Alien Tech Used ----------------- None Achievements -------------- Dodgeball, But With Guns Dynamic Key Party Time Challenges ------------ None Game ------ Seed GlidesysControlClaw Manual? 0 Play Time 01:16:15 Cumulative 49.7 hours Start 2026.01.10 @ 23:37:44 End 2026.01.11 @ 01:01:14 Sessions 1 Manual Loads 0 Difficulty Rogue Special Mode None Game No. 56 Rogue 56 Adventurer 0 Explorer 0 Win Type - Total 1 Types 1/0/0/0/0/0/0/0/0/0 Lore% 40 Gallery% 38 Achievement% 28 Wizard Run 0 Options --------- Layout 0 ASCII 0 Keyboard 0 Movement Arrows Keybinds 1 Fullscreen 1 Font 18/X11 Map View 76x50 Zoom Use 0% Tactical HUD 1 Map Filters NONE Filters NONE Steam 1 RUN: e6ef9b7e-707c-4052-ad59-05defc7d1123